[Event "*** Titled Tuesday Blitz"]
[Site "Chess.com"]
[Date "2020.05.05"]
[Round "2"]
[White "crywolf1986"]
[Black "FM_VS99"]
[Result "1/2-1/2"]
[WhiteElo "2487"]
[BlackElo "2281"]
[TimeControl "180+1"]
[EndTime "10:18:39 PDT"]
[Termination "Game drawn - insufficient material"]

1. d4 {[%clk 0:03:00.8]} 1... g6 {[%clk 0:02:59]} 2. Nf3 {[%clk 0:03:01.1]} 2...
Bg7 {[%clk 0:02:59.1]} 3. c4 {[%clk 0:03:01.6]} 3... d6 {[%clk 0:02:57.8]} 4. g3
{[%clk 0:03:02]} 4... Nf6 {[%clk 0:02:55.2]} 5. Bg2 {[%clk 0:03:01.9]} 5... O-O
{[%clk 0:02:55.8]} 6. O-O {[%clk 0:03:02.5]} 6... Nc6 {[%clk 0:02:51.8]} 7. Nc3
{[%clk 0:03:02.5]} 7... e5 {[%clk 0:02:51.3]} 8. dxe5 {[%clk 0:03:01.5]} 8...
Nxe5 {[%clk 0:02:48.9]} 9. Nxe5 {[%clk 0:03:00.9]} 9... dxe5 {[%clk 0:02:49.5]}
10. Qxd8 {[%clk 0:03:01]} 10... Rxd8 {[%clk 0:02:50.3]} 11. Bg5 {[%clk 0:03:00]}
11... Re8 {[%clk 0:02:42.5]} 12. Rad1 {[%clk 0:02:51.9]} 12... h6 {[%clk
0:02:38.1]} 13. Bc1 {[%clk 0:02:50.2]} 13... c6 {[%clk 0:02:36.2]} 14. b3 {[%clk
0:02:50]} 14... Be6 {[%clk 0:02:31.7]} 15. Ba3 {[%clk 0:02:49.2]} 15... Bf8
{[%clk 0:02:29.4]} 16. Bb2 {[%clk 0:02:48.3]} 16... a5 {[%clk 0:02:23.6]} 17.
Na4 {[%clk 0:02:42.2]} 17... Nd7 {[%clk 0:02:23.3]} 18. Rd3 {[%clk 0:02:32.8]}
18... Nc5 {[%clk 0:02:12.7]} 19. Nxc5 {[%clk 0:02:31.6]} 19... Bxc5 {[%clk
0:02:13.6]} 20. Rfd1 {[%clk 0:02:19.2]} 20... Bf5 {[%clk 0:02:03.1]} 21. e4
{[%clk 0:02:17.3]} 21... Bg4 {[%clk 0:02:01.8]} 22. Bf3 {[%clk 0:02:17.1]} 22...
Bxf3 {[%clk 0:01:53.6]} 23. Rxf3 {[%clk 0:02:18]} 23... Re7 {[%clk 0:01:47.7]}
24. Rfd3 {[%clk 0:02:15.1]} 24... a4 {[%clk 0:01:45.5]} 25. Rd8+ {[%clk
0:02:14.4]} 25... Re8 {[%clk 0:01:24.7]} 26. Rxa8 {[%clk 0:02:11.8]} 26... Rxa8
{[%clk 0:01:24]} 27. Bxe5 {[%clk 0:02:11.3]} 27... axb3 {[%clk 0:01:24.2]} 28.
axb3 {[%clk 0:02:11]} 28... g5 {[%clk 0:01:22.1]} 29. Bd4 {[%clk 0:02:09.7]}
29... Bxd4 {[%clk 0:01:20]} 30. Rxd4 {[%clk 0:02:10.6]} 30... Ra1+ {[%clk
0:01:18.6]} 31. Kg2 {[%clk 0:02:10.3]} 31... Rb1 {[%clk 0:01:18.7]} 32. Rd3
{[%clk 0:02:09.4]} 32... Kg7 {[%clk 0:01:18.9]} 33. f4 {[%clk 0:02:05.1]} 33...
Rb2+ {[%clk 0:01:16.6]} 34. Kf3 {[%clk 0:02:05.3]} 34... gxf4 {[%clk 0:01:09.9]}
35. Kxf4 {[%clk 0:02:02.3]} 35... Rf2+ {[%clk 0:01:04.6]} 36. Kg4 {[%clk
0:01:56.9]} 36... Rxh2 {[%clk 0:01:02.6]} 37. Rd7 {[%clk 0:01:56.3]} 37... b5
{[%clk 0:00:58]} 38. cxb5 {[%clk 0:01:55.6]} 38... cxb5 {[%clk 0:00:58]} 39. Rb7
{[%clk 0:01:55.6]} 39... Re2 {[%clk 0:00:58.2]} 40. Kf3 {[%clk 0:01:54.8]} 40...
Rc2 {[%clk 0:00:53]} 41. Rxb5 {[%clk 0:01:54.6]} 41... Kg6 {[%clk 0:00:49.9]}
42. Rb8 {[%clk 0:01:51.7]} 42... Kf6 {[%clk 0:00:43.7]} 43. b4 {[%clk 0:01:50]}
43... Ke5 {[%clk 0:00:43.8]} 44. Re8+ {[%clk 0:01:48.4]} 44... Kf6 {[%clk
0:00:30.8]} 45. b5 {[%clk 0:01:48]} 45... Rb2 {[%clk 0:00:29.4]} 46. Rb8 {[%clk
0:01:47.1]} 46... Ke5 {[%clk 0:00:29.5]} 47. b6 {[%clk 0:01:46.5]} 47... Rb3+
{[%clk 0:00:28.7]} 48. Kg4 {[%clk 0:01:46.4]} 48... Kxe4 {[%clk 0:00:28]} 49. b7
{[%clk 0:01:45.9]} 49... f5+ {[%clk 0:00:27.5]} 50. Kh5 {[%clk 0:01:38.5]} 50...
Kf3 {[%clk 0:00:25.3]} 51. Kxh6 {[%clk 0:01:37.8]} 51... Rb5 {[%clk 0:00:23.7]}
52. Kh5 {[%clk 0:01:27]} 52... f4+ {[%clk 0:00:22.9]} 53. Kh4 {[%clk 0:01:27.5]}
53... fxg3 {[%clk 0:00:10.4]} 54. Rf8+ {[%clk 0:01:27.5]} 54... Ke2 {[%clk
0:00:10.4]} 55. b8=Q {[%clk 0:01:27]} 55... Rxb8 {[%clk 0:00:09.6]} 56. Rxb8
{[%clk 0:01:27.3]} 56... g2 {[%clk 0:00:10.5]} 57. Rb2+ {[%clk 0:01:21]} 57...
Kf1 {[%clk 0:00:10.3]} 58. Rb1+ {[%clk 0:01:20]} 58... Kf2 {[%clk 0:00:10]} 59.
Rb2+ {[%clk 0:01:19.9]} 59... Kf1 {[%clk 0:00:10.6]} 60. Rb1+ {[%clk 0:01:16.5]}
60... Kf2 {[%clk 0:00:11.1]} 61. Kh3 {[%clk 0:01:16]} 61... g1=Q {[%clk
0:00:10.7]} 62. Rxg1 {[%clk 0:01:15.5]} 62... Kxg1 {[%clk 0:00:11.6]} 1/2-1/2

[Event "*** Titled Tuesday Blitz"]
[Site "Chess.com"]
[Date "2020.05.05"]
[Round "2"]
[White "kleopl"]
[Black "svilson23"]
[Result "0-1"]
[WhiteElo "2447"]
[BlackElo "2250"]
[TimeControl "180+1"]
[EndTime "10:18:39 PDT"]
[Termination "svilson23 won by checkmate"]

1. c4 {[%clk 0:03:00.9]} 1... e6 {[%clk 0:02:54.5]} 2. Nc3 {[%clk 0:03:00.4]}
2... d5 {[%clk 0:02:54.4]} 3. d4 {[%clk 0:02:59.6]} 3... f5 {[%clk 0:02:53.3]}
4. g3 {[%clk 0:02:58]} 4... c6 {[%clk 0:02:53.6]} 5. Bg2 {[%clk 0:02:57.1]} 5...
Nf6 {[%clk 0:02:54.2]} 6. Nh3 {[%clk 0:02:56.6]} 6... Bd6 {[%clk 0:02:54.8]} 7.
Bf4 {[%clk 0:02:55.5]} 7... Be7 {[%clk 0:02:52]} 8. O-O {[%clk 0:02:53.1]} 8...
O-O {[%clk 0:02:52.4]} 9. b3 {[%clk 0:02:53.2]} 9... Nbd7 {[%clk 0:02:52.1]} 10.
Rc1 {[%clk 0:02:50.8]} 10... Ne4 {[%clk 0:02:51.5]} 11. f3 {[%clk 0:02:48.4]}
11... Nxc3 {[%clk 0:02:49.5]} 12. Rxc3 {[%clk 0:02:49.3]} 12... g5 {[%clk
0:02:44.5]} 13. Bc1 {[%clk 0:02:47]} 13... h6 {[%clk 0:02:08.4]} 14. Nf2 {[%clk
0:02:46.1]} 14... a5 {[%clk 0:02:04.6]} 15. e4 {[%clk 0:02:45.4]} 15... Nf6
{[%clk 0:02:05.1]} 16. Rc2 {[%clk 0:02:30.7]} 16... a4 {[%clk 0:02:04.3]} 17.
Qd3 {[%clk 0:02:20.8]} 17... axb3 {[%clk 0:02:03.6]} 18. axb3 {[%clk 0:02:21.7]}
18... b5 {[%clk 0:01:55]} 19. Re1 {[%clk 0:02:13.4]} 19... bxc4 {[%clk
0:01:50.2]} 20. bxc4 {[%clk 0:02:12.5]} 20... Ba6 {[%clk 0:01:48.4]} 21. exf5
{[%clk 0:02:05.6]} 21... Bxc4 {[%clk 0:01:38.2]} 22. Qe3 {[%clk 0:01:55.5]}
22... Bb4 {[%clk 0:00:23.3]} 23. Qxe6+ {[%clk 0:01:52.2]} 23... Kg7 {[%clk
0:00:21.6]} 24. Re5 {[%clk 0:01:32.1]} 24... Re8 {[%clk 0:00:21.1]} 25. Qxc6
{[%clk 0:01:29]} 25... Bd6 {[%clk 0:00:17.6]} 26. f4 {[%clk 0:01:17.1]} 26...
Rc8 {[%clk 0:00:12.6]} 27. Rxe8 {[%clk 0:01:13.7]} 27... Nxe8 {[%clk 0:00:12.3]}
28. Qb7+ {[%clk 0:00:49.1]} 28... Rc7 {[%clk 0:00:11.5]} 29. Qb2 {[%clk
0:00:45.1]} 29... gxf4 {[%clk 0:00:12.4]} 30. g4 {[%clk 0:00:40.8]} 30... Qg5
{[%clk 0:00:10.8]} 31. Qb8 {[%clk 0:00:32.9]} 31... Nf6 {[%clk 0:00:09.7]} 32.
h3 {[%clk 0:00:18.3]} 32... h5 {[%clk 0:00:09.7]} 33. Ba3 {[%clk 0:00:15.5]}
33... hxg4 {[%clk 0:00:06]} 34. Bxd6 {[%clk 0:00:14.7]} 34... Rd7 {[%clk
0:00:05.3]} 35. hxg4 {[%clk 0:00:13.4]} 35... Nxg4 {[%clk 0:00:05.3]} 36. Nh3
{[%clk 0:00:12.3]} 36... Qh4 {[%clk 0:00:04.2]} 37. Bxf4 {[%clk 0:00:11.3]}
37... Qe1+ {[%clk 0:00:03.9]} 38. Bf1 {[%clk 0:00:03.5]} 38... Qxf1# {[%clk
0:00:03.7]} 0-1

[Event "*** Titled Tuesday Blitz"]
[Site "Chess.com"]
[Date "2020.05.05"]
[Round "2"]
[White "Gabrielian_Artur"]
[Black "ENEASZ"]
[Result "1-0"]
[WhiteElo "2707"]
[BlackElo "2480"]
[TimeControl "180+1"]
[EndTime "10:18:41 PDT"]
[Termination "Gabrielian_Artur won on time"]

1. e4 {[%clk 0:03:00.9]} 1... d6 {[%clk 0:02:59.8]} 2. d4 {[%clk 0:03:00.7]}
2... Nf6 {[%clk 0:02:59.2]} 3. Nc3 {[%clk 0:03:00.8]} 3... e5 {[%clk 0:02:59.9]}
4. Nf3 {[%clk 0:03:00.1]} 4... Nbd7 {[%clk 0:02:59.5]} 5. Bc4 {[%clk 0:02:59.6]}
5... Be7 {[%clk 0:02:58]} 6. O-O {[%clk 0:02:59.3]} 6... O-O {[%clk 0:02:57.8]}
7. a4 {[%clk 0:02:57.5]} 7... c6 {[%clk 0:02:57.8]} 8. h3 {[%clk 0:02:55.6]}
8... b6 {[%clk 0:02:57.5]} 9. Re1 {[%clk 0:02:49.2]} 9... a6 {[%clk 0:02:57.6]}
10. d5 {[%clk 0:02:45.4]} 10... c5 {[%clk 0:02:49.8]} 11. Bf1 {[%clk 0:02:42.6]}
11... g6 {[%clk 0:02:43.4]} 12. Nd2 {[%clk 0:02:32.1]} 12... Nh5 {[%clk
0:02:38.5]} 13. Nc4 {[%clk 0:02:30.6]} 13... Ng7 {[%clk 0:02:26.1]} 14. f4
{[%clk 0:02:23.3]} 14... f6 {[%clk 0:01:46.8]} 15. f5 {[%clk 0:02:09.9]} 15...
gxf5 {[%clk 0:01:40]} 16. exf5 {[%clk 0:02:08.5]} 16... Nxf5 {[%clk 0:01:40.2]}
17. Ne4 {[%clk 0:02:04.3]} 17... Kh8 {[%clk 0:01:20.4]} 18. Ra3 {[%clk
0:02:03.7]} 18... Rg8 {[%clk 0:01:19]} 19. Rf3 {[%clk 0:02:02.1]} 19... Nd4
{[%clk 0:01:18.8]} 20. Rf2 {[%clk 0:01:57.1]} 20... Nf8 {[%clk 0:01:06.3]} 21.
c3 {[%clk 0:01:47.3]} 21... b5 {[%clk 0:00:59.1]} 22. cxd4 {[%clk 0:01:42.9]}
22... bxc4 {[%clk 0:00:57.9]} 23. dxc5 {[%clk 0:01:43]} 23... f5 {[%clk
0:00:53.2]} 24. Nxd6 {[%clk 0:01:36.6]} 24... Bxd6 {[%clk 0:00:53.3]} 25. cxd6
{[%clk 0:01:36.9]} 25... Qxd6 {[%clk 0:00:52.4]} 26. Bd2 {[%clk 0:01:18.6]}
26... Ng6 {[%clk 0:00:50.3]} 27. Bc3 {[%clk 0:01:17.1]} 27... Bd7 {[%clk
0:00:35.8]} 28. Bxc4 {[%clk 0:01:12.5]} 28... Rac8 {[%clk 0:00:30.2]} 29. Qe2
{[%clk 0:00:51.1]} 29... Rce8 {[%clk 0:00:27.4]} 30. Bxa6 {[%clk 0:00:47.1]}
30... h6 {[%clk 0:00:23.1]} 31. Bb5 {[%clk 0:00:44]} 31... Kh7 {[%clk
0:00:21.2]} 32. Bxd7 {[%clk 0:00:43.4]} 32... Qxd7 {[%clk 0:00:21]} 33. Qb5
{[%clk 0:00:41.1]} 33... Qa7 {[%clk 0:00:15.6]} 34. Kf1 {[%clk 0:00:32.4]} 34...
f4 {[%clk 0:00:07.7]} 35. a5 {[%clk 0:00:24.7]} 35... e4 {[%clk 0:00:06.7]} 36.
Qb6 {[%clk 0:00:24.6]} 36... Qd7 {[%clk 0:00:05.8]} 37. Qc6 {[%clk 0:00:22.4]}
37... Qf5 {[%clk 0:00:05]} 38. d6 {[%clk 0:00:18.2]} 38... e3 {[%clk 0:00:04.6]}
39. Rf3 {[%clk 0:00:17.6]} 39... Rd8 {[%clk 0:00:02.7]} 40. Rexe3 {[%clk
0:00:15.4]} 1-0

[Event "*** Titled Tuesday Blitz"]
[Site "Chess.com"]
[Date "2020.05.05"]
[Round "2"]
[White "LuckSlayeer"]
[Black "Kobalia"]
[Result "0-1"]
[WhiteElo "2513"]
[BlackElo "2745"]
[TimeControl "180+1"]
[EndTime "10:18:42 PDT"]
[Termination "Kobalia won on time"]

1. e4 {[%clk 0:03:00.9]} 1... c6 {[%clk 0:02:59.6]} 2. c4 {[%clk 0:02:59.3]}
2... d5 {[%clk 0:02:59.5]} 3. exd5 {[%clk 0:03:00.2]} 3... cxd5 {[%clk
0:02:59.8]} 4. cxd5 {[%clk 0:03:01.1]} 4... Nf6 {[%clk 0:02:59.6]} 5. Nc3 {[%clk
0:03:01.7]} 5... Nxd5 {[%clk 0:02:59.7]} 6. Nf3 {[%clk 0:03:01.7]} 6... Nc6
{[%clk 0:02:58.6]} 7. Bb5 {[%clk 0:03:01.3]} 7... Nxc3 {[%clk 0:02:42]} 8. bxc3
{[%clk 0:02:59.1]} 8... Bd7 {[%clk 0:02:41.8]} 9. O-O {[%clk 0:02:57]} 9... g6
{[%clk 0:02:42.2]} 10. d4 {[%clk 0:02:53.6]} 10... Bg7 {[%clk 0:02:38.1]} 11. a4
{[%clk 0:02:45]} 11... O-O {[%clk 0:02:36.6]} 12. Ba3 {[%clk 0:02:44.7]} 12...
Re8 {[%clk 0:02:36.2]} 13. Re1 {[%clk 0:02:43.1]} 13... Rc8 {[%clk 0:02:31.9]}
14. Qd2 {[%clk 0:02:40.2]} 14... Na5 {[%clk 0:02:30]} 15. Qe3 {[%clk 0:02:16.6]}
15... Bxb5 {[%clk 0:02:22.3]} 16. axb5 {[%clk 0:02:17.5]} 16... Nc4 {[%clk
0:02:22.5]} 17. Bxe7 {[%clk 0:01:13.1]} 17... Qd7 {[%clk 0:01:51.1]} 18. Qg5
{[%clk 0:01:12.1]} 18... f6 {[%clk 0:01:44.2]} 19. Bxf6 {[%clk 0:00:58.6]} 19...
Bxf6 {[%clk 0:01:26.7]} 20. Qxf6 {[%clk 0:00:57.1]} 20... Qxb5 {[%clk
0:01:27.1]} 21. Ng5 {[%clk 0:00:46.9]} 21... Qf5 {[%clk 0:01:20.9]} 22. Qxf5
{[%clk 0:00:23.9]} 22... gxf5 {[%clk 0:01:20.4]} 23. h4 {[%clk 0:00:24.4]} 23...
a6 {[%clk 0:01:19.4]} 24. Ne6 {[%clk 0:00:19.8]} 24... a5 {[%clk 0:00:47.3]} 25.
Nc5 {[%clk 0:00:15]} 25... b6 {[%clk 0:00:44.8]} 26. Nd7 {[%clk 0:00:12.4]}
26... Kf7 {[%clk 0:00:38.3]} 27. Rxe8 {[%clk 0:00:08.2]} 27... Rxe8 {[%clk
0:00:37.4]} 28. Rb1 {[%clk 0:00:06.6]} 28... Re7 {[%clk 0:00:24]} 29. Ne5+
{[%clk 0:00:04]} 29... Nxe5 {[%clk 0:00:23]} 30. dxe5 {[%clk 0:00:04.9]} 30...
Rb7 {[%clk 0:00:23.1]} 31. f4 {[%clk 0:00:04.5]} 31... a4 {[%clk 0:00:20.9]} 32.
Ra1 {[%clk 0:00:03.1]} 32... Ra7 {[%clk 0:00:20.4]} 33. Kf2 {[%clk 0:00:03.3]}
33... Ke6 {[%clk 0:00:19.7]} 34. Ke3 {[%clk 0:00:03.3]} 34... Kd5 {[%clk
0:00:20]} 35. Kd3 {[%clk 0:00:03.1]} 35... b5 {[%clk 0:00:20.3]} 36. Ra2 {[%clk
0:00:02.9]} 36... a3 {[%clk 0:00:18.5]} 37. h5 {[%clk 0:00:03]} 37... h6 {[%clk
0:00:18]} 38. g3 {[%clk 0:00:03.3]} 38... Ra4 {[%clk 0:00:17.3]} 39. g4 {[%clk
0:00:03.3]} 39... fxg4 {[%clk 0:00:16.6]} 40. f5 {[%clk 0:00:03.9]} 40... Kxe5
{[%clk 0:00:16.4]} 41. Kc2 {[%clk 0:00:02]} 41... g3 {[%clk 0:00:14.7]} 42. Kb3
{[%clk 0:00:02.1]} 42... Kxf5 {[%clk 0:00:14.6]} 0-1

[Event "*** Titled Tuesday Blitz"]
[Site "Chess.com"]
[Date "2020.05.05"]
[Round "2"]
[White "Alohamora11"]
[Black "GoValya"]
[Result "1-0"]
[WhiteElo "2510"]
[BlackElo "2169"]
[TimeControl "180+1"]
[EndTime "10:18:42 PDT"]
[Termination "Alohamora11 won by resignation"]

1. e4 {[%clk 0:03:00.9]} 1... e6 {[%clk 0:02:59.9]} 2. d4 {[%clk 0:03:00.6]}
2... d5 {[%clk 0:02:58.1]} 3. Nc3 {[%clk 0:03:00.3]} 3... Be7 {[%clk 0:02:58]}
4. Bd3 {[%clk 0:02:53.3]} 4... c5 {[%clk 0:02:47.8]} 5. exd5 {[%clk 0:02:52.9]}
5... exd5 {[%clk 0:02:47.5]} 6. Nf3 {[%clk 0:02:53.1]} 6... Nf6 {[%clk
0:02:46.8]} 7. O-O {[%clk 0:02:52.7]} 7... O-O {[%clk 0:02:46.2]} 8. Re1 {[%clk
0:02:52.7]} 8... a6 {[%clk 0:02:45.3]} 9. dxc5 {[%clk 0:02:47.1]} 9... Bxc5
{[%clk 0:02:44.9]} 10. Bg5 {[%clk 0:02:47.8]} 10... Be6 {[%clk 0:02:36.9]} 11.
Ne2 {[%clk 0:02:37.1]} 11... Nbd7 {[%clk 0:02:28]} 12. Nf4 {[%clk 0:02:15.4]}
12... Qb6 {[%clk 0:02:26.2]} 13. Nxe6 {[%clk 0:02:08.7]} 13... Bxf2+ {[%clk
0:02:23.4]} 14. Kh1 {[%clk 0:02:04.9]} 14... fxe6 {[%clk 0:02:23.6]} 15. Rf1
{[%clk 0:01:57.2]} 15... Bc5 {[%clk 0:02:18.5]} 16. Qe2 {[%clk 0:01:52]} 16...
Ng4 {[%clk 0:02:14]} 17. Bh4 {[%clk 0:01:42.3]} 17... e5 {[%clk 0:02:13.8]} 18.
Bxh7+ {[%clk 0:01:40.5]} 18... Kh8 {[%clk 0:02:02.9]} 19. Ng5 {[%clk 0:01:40.5]}
19... Ndf6 {[%clk 0:01:43]} 20. Bg6 {[%clk 0:01:21.4]} 20... e4 {[%clk
0:01:42.2]} 21. h3 {[%clk 0:01:15]} 21... Ne5 {[%clk 0:01:41.5]} 22. Rxf6 {[%clk
0:01:14.4]} 22... Rxf6 {[%clk 0:01:37.6]} 23. Qh5+ {[%clk 0:01:12.2]} 23... Kg8
{[%clk 0:01:37.7]} 24. Qh7+ {[%clk 0:01:04]} 24... Kf8 {[%clk 0:01:37.4]} 25.
Qh8+ {[%clk 0:00:59]} 25... Ke7 {[%clk 0:01:37.4]} 26. Qxg7+ {[%clk 0:00:51.9]}
26... Kd8 {[%clk 0:01:19]} 27. Nf7+ {[%clk 0:00:35.1]} 27... Nxf7 {[%clk
0:01:18.7]} 28. Bxf6+ {[%clk 0:00:34.2]} 28... Be7 {[%clk 0:01:14.2]} 29. Bxe7+
{[%clk 0:00:34.1]} 29... Kxe7 {[%clk 0:01:14.1]} 30. Qxf7+ {[%clk 0:00:34.5]}
30... Kd6 {[%clk 0:01:08.9]} 31. Qf6+ {[%clk 0:00:33.3]} 31... Kc5 {[%clk
0:01:09.1]} 32. Qc3+ {[%clk 0:00:29.4]} 32... Kd6 {[%clk 0:01:07.7]} 33. Rf1
{[%clk 0:00:29.8]} 33... d4 {[%clk 0:01:02.5]} 34. Qa3+ {[%clk 0:00:28.2]} 34...
Kc7 {[%clk 0:00:57.3]} 35. Qe7+ {[%clk 0:00:26.2]} 35... Kb8 {[%clk 0:00:56.2]}
36. Bxe4 {[%clk 0:00:24.4]} 36... Qxb2 {[%clk 0:00:48]} 37. Rf7 {[%clk
0:00:19.2]} 37... d3 {[%clk 0:00:35.9]} 38. Qxb7+ {[%clk 0:00:15.6]} 38... Qxb7
{[%clk 0:00:35.6]} 39. Rxb7+ {[%clk 0:00:16.5]} 39... Kc8 {[%clk 0:00:35.7]} 40.
cxd3 {[%clk 0:00:17.1]} 40... a5 {[%clk 0:00:35.1]} 41. Rc7+ {[%clk 0:00:14.2]}
41... Kxc7 {[%clk 0:00:35.3]} 42. Bxa8 {[%clk 0:00:14.7]} 42... Kd6 {[%clk
0:00:35.7]} 43. Be4 {[%clk 0:00:15.6]} 43... Ke5 {[%clk 0:00:35.8]} 44. h4
{[%clk 0:00:15.8]} 44... Kf4 {[%clk 0:00:35.7]} 45. h5 {[%clk 0:00:16.7]} 45...
Kg5 {[%clk 0:00:35.8]} 46. g4 {[%clk 0:00:17.4]} 46... Kh6 {[%clk 0:00:33.9]}
47. Kg2 {[%clk 0:00:17.4]} 47... Kg5 {[%clk 0:00:34.8]} 48. Kg3 {[%clk
0:00:18.3]} 48... Kh6 {[%clk 0:00:34.8]} 49. Kh4 {[%clk 0:00:19.2]} 49... Kg7
{[%clk 0:00:34.8]} 50. g5 {[%clk 0:00:20.1]} 50... Kh8 {[%clk 0:00:34]} 51. h6
{[%clk 0:00:21]} 51... Kg8 {[%clk 0:00:34.3]} 52. g6 {[%clk 0:00:21]} 52... Kh8
{[%clk 0:00:34.4]} 53. g7+ {[%clk 0:00:20.9]} 53... Kg8 {[%clk 0:00:34.6]} 54.
Bd5+ {[%clk 0:00:21.4]} 54... Kh7 {[%clk 0:00:33.5]} 55. g8=Q+ {[%clk
0:00:22.3]} 55... Kxh6 {[%clk 0:00:33.1]} 56. Be4 {[%clk 0:00:22.5]} 1-0

[Event "*** Titled Tuesday Blitz"]
[Site "Chess.com"]
[Date "2020.05.05"]
[Round "2"]
[White "Grandmaster2B"]
[Black "swayamsm"]
[Result "1-0"]
[WhiteElo "2484"]
[BlackElo "2659"]
[TimeControl "180+1"]
[EndTime "10:18:43 PDT"]
[Termination "Grandmaster2B won on time"]

1. e4 {[%clk 0:03:00.9]} 1... e6 {[%clk 0:03:00.2]} 2. d4 {[%clk 0:03:00.8]}
2... d5 {[%clk 0:02:59.7]} 3. Nd2 {[%clk 0:03:01.3]} 3... Nf6 {[%clk 0:02:45.5]}
4. e5 {[%clk 0:03:00.7]} 4... Nfd7 {[%clk 0:02:44.6]} 5. Bd3 {[%clk 0:03:00.8]}
5... c5 {[%clk 0:02:44.3]} 6. c3 {[%clk 0:03:01.4]} 6... Nc6 {[%clk 0:02:44]} 7.
Ne2 {[%clk 0:03:02]} 7... cxd4 {[%clk 0:02:35.3]} 8. cxd4 {[%clk 0:03:02.9]}
8... f6 {[%clk 0:02:36]} 9. exf6 {[%clk 0:03:03.8]} 9... Nxf6 {[%clk 0:02:36.9]}
10. Nf3 {[%clk 0:03:04.7]} 10... Bd6 {[%clk 0:02:36.9]} 11. O-O {[%clk
0:03:04.9]} 11... Qc7 {[%clk 0:02:37]} 12. Nc3 {[%clk 0:03:05.3]} 12... O-O
{[%clk 0:02:36.8]} 13. Nb5 {[%clk 0:03:04.3]} 13... Qb8 {[%clk 0:02:35.9]} 14.
Nxd6 {[%clk 0:03:04.5]} 14... Qxd6 {[%clk 0:02:36.8]} 15. Re1 {[%clk 0:03:02.6]}
15... Bd7 {[%clk 0:02:36.8]} 16. Ne5 {[%clk 0:02:54.3]} 16... Be8 {[%clk
0:02:33.6]} 17. Bg5 {[%clk 0:02:45.4]} 17... Nxd4 {[%clk 0:02:30.8]} 18. Bxf6
{[%clk 0:02:36.8]} 18... gxf6 {[%clk 0:02:31.7]} 19. Qg4+ {[%clk 0:02:34.8]}
19... Kh8 {[%clk 0:02:30.4]} 20. Qh4 {[%clk 0:02:27.9]} 20... Nf5 {[%clk
0:01:55.8]} 21. Bxf5 {[%clk 0:02:22.6]} 21... exf5 {[%clk 0:01:56.7]} 22. Qh6
{[%clk 0:02:17.1]} 22... Rd8 {[%clk 0:01:43]} 23. Nf3 {[%clk 0:02:06]} 23... Bg6
{[%clk 0:01:11.7]} 24. Nd4 {[%clk 0:01:36.2]} 24... Rfe8 {[%clk 0:01:07.5]} 25.
Re3 {[%clk 0:01:18.7]} 25... Re4 {[%clk 0:00:59.1]} 26. Nf3 {[%clk 0:01:03]}
26... f4 {[%clk 0:00:50.7]} 27. Rd3 {[%clk 0:00:56.3]} 27... Kg8 {[%clk
0:00:44.3]} 28. Rad1 {[%clk 0:00:53.9]} 28... Qe6 {[%clk 0:00:36.9]} 29. h4
{[%clk 0:00:39.9]} 29... Qf5 {[%clk 0:00:34.4]} 30. Nd4 {[%clk 0:00:23.2]} 30...
Qe5 {[%clk 0:00:34.7]} 31. Nf3 {[%clk 0:00:19.9]} 31... Qf5 {[%clk 0:00:28.2]}
32. Nd4 {[%clk 0:00:19.9]} 32... Qh5 {[%clk 0:00:26.6]} 33. Qxh5 {[%clk
0:00:18.4]} 33... Bxh5 {[%clk 0:00:27.5]} 34. f3 {[%clk 0:00:16.1]} 34... Re5
{[%clk 0:00:26.5]} 35. Nb5 {[%clk 0:00:08.5]} 35... a6 {[%clk 0:00:21.8]} 36.
Nc3 {[%clk 0:00:08.2]} 36... Bf7 {[%clk 0:00:19.4]} 37. Rd4 {[%clk 0:00:07.5]}
37... Kg7 {[%clk 0:00:18.9]} 38. Rxf4 {[%clk 0:00:07.2]} 38... Rc8 {[%clk
0:00:14.4]} 39. Rfd4 {[%clk 0:00:06.7]} 1-0

[Event "*** Titled Tuesday Blitz"]
[Site "Chess.com"]
[Date "2020.05.05"]
[Round "2"]
[White "Sychev_Klementy"]
[Black "regular_legs"]
[Result "0-1"]
[WhiteElo "2886"]
[BlackElo "2581"]
[TimeControl "180+1"]
[EndTime "10:18:44 PDT"]
[Termination "regular_legs won on time"]

1. e4 {[%clk 0:03:00.9]} 1... c6 {[%clk 0:02:59.6]} 2. d4 {[%clk 0:03:00.5]}
2... d5 {[%clk 0:03:00.5]} 3. e5 {[%clk 0:02:59.8]} 3... Bf5 {[%clk 0:03:00.3]}
4. Nf3 {[%clk 0:02:59]} 4... e6 {[%clk 0:03:00]} 5. Be2 {[%clk 0:02:59.6]} 5...
Ne7 {[%clk 0:02:59.2]} 6. O-O {[%clk 0:02:59.2]} 6... Ng6 {[%clk 0:02:59.4]} 7.
Be3 {[%clk 0:02:44.1]} 7... Nd7 {[%clk 0:02:57.9]} 8. Nbd2 {[%clk 0:02:37.9]}
8... f6 {[%clk 0:02:55.6]} 9. c4 {[%clk 0:02:33.9]} 9... fxe5 {[%clk 0:02:47.3]}
10. dxe5 {[%clk 0:02:31.5]} 10... Ndxe5 {[%clk 0:02:35]} 11. Nd4 {[%clk
0:02:30]} 11... Bb4 {[%clk 0:02:35.6]} 12. g4 {[%clk 0:02:06.3]} 12... c5 {[%clk
0:02:35]} 13. Nxf5 {[%clk 0:00:36.2]} 13... exf5 {[%clk 0:02:26.1]} 14. gxf5
{[%clk 0:00:35.7]} 14... Nh4 {[%clk 0:02:12.3]} 15. f4 {[%clk 0:00:27.3]} 15...
Nxf5 {[%clk 0:01:59]} 16. Bf2 {[%clk 0:00:21.4]} 16... Nf7 {[%clk 0:01:29.6]}
17. cxd5 {[%clk 0:00:17.7]} 17... Bxd2 {[%clk 0:01:27.2]} 18. Qxd2 {[%clk
0:00:17]} 18... O-O {[%clk 0:01:26.1]} 19. Rad1 {[%clk 0:00:15.9]} 19... b6
{[%clk 0:01:25.1]} 20. Bf3 {[%clk 0:00:15.5]} 20... N7d6 {[%clk 0:01:24.9]} 21.
Kh1 {[%clk 0:00:15.3]} 21... Re8 {[%clk 0:01:19.7]} 22. Rde1 {[%clk 0:00:11.9]}
22... Qf6 {[%clk 0:01:19]} 23. Rg1 {[%clk 0:00:10.7]} 23... Nd4 {[%clk
0:01:06.6]} 24. Bxd4 {[%clk 0:00:08.4]} 24... cxd4 {[%clk 0:01:07.5]} 25. Re6
{[%clk 0:00:07.1]} 25... Rxe6 {[%clk 0:00:43.8]} 26. dxe6 {[%clk 0:00:08]} 26...
Re8 {[%clk 0:00:41.8]} 27. Bd5 {[%clk 0:00:06.5]} 27... Kh8 {[%clk 0:00:39.2]}
28. Qd3 {[%clk 0:00:04.9]} 28... Qxf4 {[%clk 0:00:35.9]} 29. Rf1 {[%clk
0:00:05]} 29... Qg5 {[%clk 0:00:31.9]} 30. Qf3 {[%clk 0:00:04.6]} 30... h6
{[%clk 0:00:26.7]} 31. Bb3 {[%clk 0:00:04.7]} 31... Qe3 {[%clk 0:00:25.3]} 32.
Qxe3 {[%clk 0:00:02]} 32... dxe3 {[%clk 0:00:26.2]} 33. Rf3 {[%clk 0:00:01.7]}
33... Ne4 {[%clk 0:00:23.4]} 34. Rxe3 {[%clk 0:00:01.7]} 34... Nc5 {[%clk
0:00:24.3]} 35. Bd5 {[%clk 0:00:00.9]} 35... Re7 {[%clk 0:00:22.2]} 0-1